bitfinex-derivatives/quotes_BTCF0:USTF0_20251228
["timestamp","ask_amount","ask_price","bid_price","bid_amount"]
[1766945814616,0.00011309,87650.0,87634.0,0.03504689]
[1766945814815,0.00011309,87650.0,87635.0,0.03504689]
[1766945815021,0.00011309,87650.0,87636.0,0.03504689]
[1766945815220,0.00011309,87650.0,87632.0,0.05547513]
[1766945815526,0.00011309,87650.0,87634.0,0.11409989]
[1766945815719,0.00011309,87650.0,87635.0,0.03504615]
[1766945815920,0.0114175,87646.0,87635.0,0.11409989]
[1766945816116,0.0114171,87649.0,87632.0,0.05547513]
[1766945816317,0.00011309,87650.0,87633.0,0.035046]
[1766945816518,0.011418,87643.0,87634.0,0.035046]
[1766945816823,0.0114175,87646.0,87632.0,0.05547513]
[1766945817226,0.00011309,87650.0,87635.0,0.11409989]
[1766945817418,0.00011309,87650.0,87632.0,0.05547513]
[1766945817728,0.00011309,87650.0,87633.0,0.11410445]
[1766945818330,0.0114175,87646.0,87633.0,0.11410445]
[1766945820426,0.00011309,87650.0,87633.0,0.11410445]
[1766945820629,0.00011309,87650.0,87637.0,0.0114185]
[1766945820930,0.0114177,87644.0,87638.0,0.05768]
[1766945821231,0.0114174,87647.0,87638.0,0.05768]
[1766945822429,0.01153009,87650.0,87628.0,0.00017118]
[1766945822622,0.00011309,87650.0,87628.0,0.00017118]
[1766945822822,0.00011309,87650.0,87619.0,0.09708]
[1766945823034,0.00011309,87650.0,87612.0,0.0114219]
[1766945823332,0.0114187,87637.0,87617.0,0.0114212]
[1766945823533,0.0114187,87637.0,87618.0,0.09708]
[1766945823833,0.0114187,87637.0,87619.0,0.00017118]
[1766945824033,0.0114187,87637.0,87620.0,0.05768]
[1766945825724,0.0114189,87636.0,87620.0,0.05768]
[1766945827628,0.09708,87642.0,87620.0,0.05768]
[1766945827629,0.1201,87641.0,87620.0,0.05768]
[1766945827823,0.0114205,87623.0,87619.0,8e-08]
[1766945828032,0.0114212,87618.0,87608.0,0.05768]
[1766945828724,0.0114207,87622.0,87608.0,0.05768]
[1766945829125,0.011421,87619.0,87608.0,0.05768]
[1766945830525,0.00017118,87624.0,87608.0,0.05768]
[1766945831238,0.011421,87619.0,87608.0,0.05768]
[1766945831825,0.00017118,87624.0,87606.0,0.05781118]
[1766945832026,0.0114228,87606.0,87592.0,0.09708]
[1766945832238,0.0114222,87610.0,87594.0,0.05764]
[1766945832630,0.09708,87616.0,87597.0,1e-07]
[1766945833031,0.011423,87604.0,87594.0,0.05768]
[1766945834140,0.0114228,87605.0,87594.0,0.05768]
[1766945834336,0.0114237,87598.0,87587.0,0.05764]
[1766945834551,0.09708,87616.0,87587.0,0.05768]
[1766945835142,0.0114226,87607.0,87587.0,0.05768]
[1766945835642,0.0114229,87605.0,87588.0,0.00017118]
[1766945837943,0.0002871,87606.0,87589.0,0.0114248]
[1766945838143,0.0002871,87606.0,87589.0,0.12558461]
[1766945839234,0.0002871,87606.0,87592.0,0.0114245]
[1766945840041,0.0002871,87606.0,87589.0,0.0114249]
[1766945840344,0.0114219,87612.0,87593.0,0.11415655]
[1766945840541,0.0114214,87616.0,87597.0,0.0114238]
[1766945840738,0.1085014,87616.0,87597.0,0.0114238]
[1766945841243,0.1102134,87615.0,87601.0,0.0114232]
[1766945841439,0.00017118,87617.0,87601.0,0.0114232]
[1766945841744,0.00017118,87617.0,87599.0,0.00017118]
[1766945841745,0.0114218,87613.0,87599.0,0.00017118]
[1766945842137,0.0131334,87612.0,87599.0,0.00017118]
[1766945842331,0.01159248,87617.0,87599.0,0.00017118]
[1766945842644,0.0114216,87615.0,87599.0,0.00017118]
[1766945843749,0.00017118,87617.0,87599.0,0.00017118]
[1766945844439,0.0114218,87613.0,87599.0,0.00017118]
[1766945844638,0.0114214,87616.0,87599.0,0.00017118]
[1766945845038,0.0114218,87613.0,87599.0,0.00017118]
[1766945846643,0.00017118,87617.0,87599.0,0.00017118]
[1766945847050,0.00017118,87617.0,87600.0,0.0114234]
[1766945847251,0.00017118,87617.0,87604.0,0.0114229]
[1766945849852,0.30397571,87648.0,87599.0,0.00017118]
[1766945849853,0.04735171,87625.0,87599.0,0.00017118]
[1766945850056,0.0114192,87634.0,87605.0,0.11414156]
[1766945850257,0.09712,87647.0,87618.0,0.0114211]
[1766945850550,0.0114186,87638.0,87619.0,0.0114209]
[1766945850747,0.0114181,87641.0,87613.0,0.05764]
[1766945850943,0.00017118,87636.0,87627.0,0.0114198]
[1766945851143,0.00228174,87653.0,87636.0,0.0114187]
[1766945851348,0.00228174,87653.0,87632.0,0.0114192]
[1766945851548,0.00228174,87653.0,87635.0,0.0114189]
[1766945852148,0.00245292,87653.0,87638.0,0.0114184]
[1766945853051,0.00245292,87653.0,87635.0,0.00017118]
[1766945853252,0.00245292,87653.0,87636.0,0.0114187]
[1766945853446,0.00245292,87653.0,87636.0,0.12551468]
[1766945854060,2.92e-06,87653.0,87636.0,0.12551468]
[1766945858156,2.92e-06,87653.0,87636.0,0.11409598]
[1766945858755,2.92e-06,87653.0,87637.0,0.0114185]
[1766945858959,2.92e-06,87653.0,87641.0,0.0114181]
[1766945859161,2.92e-06,87653.0,87642.0,0.0576]
[1766945859352,2.92e-06,87653.0,87642.0,0.17169729]
[1766945861565,2.92e-06,87653.0,87646.0,0.0114174]
[1766945861955,2.92e-06,87653.0,87644.0,0.09708]
[1766945862260,2.92e-06,87653.0,87644.0,0.1084976]
[1766945862856,2.92e-06,87653.0,87645.0,0.11409208]
[1766945864571,0.0114167,87652.0,87635.0,0.00017118]
[1766945864755,2.92e-06,87653.0,87636.0,0.15468]
[1766945864955,2.92e-06,87653.0,87642.0,0.011418]
[1766945865163,2.92e-06,87653.0,87643.0,0.05756]
[1766945867065,2.92e-06,87653.0,87644.0,0.0114177]
[1766945869067,2.92e-06,87653.0,87645.0,0.00798]
[1766945876675,2.92e-06,87653.0,87646.0,0.05752]
[1766945878478,0.0114167,87652.0,87646.0,0.05752]
[1766945879278,2.92e-06,87653.0,87646.0,0.05752]
[1766945879977,0.0114178,87644.0,87636.0,0.09708]
[1766945880176,0.0114178,87644.0,87635.0,0.00017118]
[1766945880368,2.92e-06,87653.0,87640.0,0.1003485]
[1766945880679,2.92e-06,87653.0,87639.0,0.05752]
[1766945880868,2.92e-06,87653.0,87640.0,0.1003485]
[1766945882776,0.01141952,87653.0,87640.0,0.1003485]
[1766945883479,2.92e-06,87653.0,87640.0,0.1003485]
[1766945884378,2.92e-06,87653.0,87644.0,0.0114177]
[1766945886080,2.92e-06,87653.0,87641.0,0.0114181]
[1766945886476,2.92e-06,87653.0,87641.0,0.12551018]
[1766945887386,2.92e-06,87653.0,87641.0,0.11409208]
[1766945887573,0.01141952,87653.0,87641.0,0.11409208]
[1766945888986,0.011417,87650.0,87641.0,0.11409208]
[1766945889874,2.92e-06,87653.0,87641.0,0.11409208]
[1766945890387,2.92e-06,87653.0,87639.0,0.05752]
[1766945891291,0.0114174,87647.0,87639.0,0.05752]
[1766945892090,0.0114178,87644.0,87635.0,0.00017118]
[1766945892388,0.0114173,87648.0,87637.0,0.05752]
[1766945892979,0.0114171,87650.0,87637.0,0.05752]
[1766945893174,2.92e-06,87653.0,87638.0,0.1003485]
[1766945893374,0.0114171,87649.0,87637.0,0.05752]
[1766945894290,0.0114175,87647.0,87637.0,0.05752]
[1766945895587,0.0114169,87651.0,87637.0,0.05752]
[1766945896184,0.0114172,87648.0,87637.0,0.05752]
[1766945899092,2.92e-06,87653.0,87637.0,0.05752]
[1766945899397,0.0114172,87648.0,87637.0,0.05752]
[1766945901701,0.0114168,87651.0,87637.0,0.05752]
[1766945902599,0.0114168,87651.0,87635.0,0.00017118]
[1766945902600,0.0114172,87649.0,87635.0,0.00017118]
[1766945904301,0.0114167,87652.0,87635.0,0.00017118]
[1766945905099,0.0114167,87652.0,87635.0,0.01158998]
[1766945906401,0.011417,87650.0,87635.0,0.00017118]
[1766945906601,0.16589952,87653.0,87635.0,0.00017118]
[1766945911207,0.15448292,87653.0,87635.0,0.00017118]
[1766945911706,0.1003485,87650.0,87635.0,0.00017118]
[1766945912005,0.0114173,87648.0,87635.0,0.00017118]
[1766945912206,0.0114183,87640.0,87635.0,8e-08]
[1766945912411,0.0114179,87643.0,87626.0,0.05744]
[1766945913309,0.0114179,87643.0,87626.0,0.05761118]
[1766945913805,0.05744,87645.0,87630.0,0.1117679]
[1766945914906,0.05744,87645.0,87630.0,0.0114194]
[1766945915103,0.05744,87645.0,87630.0,0.1117679]
[1766945915900,0.05744,87645.0,87630.0,0.0114194]
[1766945916294,0.05744,87645.0,87630.0,0.1117679]
[1766945916500,0.1201,87652.0,87626.0,0.05761118]
[1766945916501,0.1201,87652.0,87639.0,0.0114183]
[1766945916804,0.0114155,87661.0,87641.0,0.011418]
[1766945917115,0.0114155,87661.0,87642.0,0.05744]
[1766945917407,0.0114159,87659.0,87642.0,0.05744]
[1766945917807,0.01158708,87659.0,87642.0,0.05761118]
[1766945918201,0.0114161,87657.0,87642.0,0.00017118]
[1766945918398,0.0114161,87657.0,87642.0,0.05761118]
[1766945921010,0.0114164,87655.0,87642.0,0.05761118]
[1766945922911,0.0114166,87653.0,87642.0,0.05761118]
[1766945924714,0.0114166,87653.0,87642.0,0.00017118]
[1766945927619,0.06117571,87657.0,87642.0,0.00017118]
[1766945927919,0.0114165,87654.0,87642.0,0.00017118]
[1766945932336,0.0114164,87655.0,87642.0,0.00017118]
[1766945936642,0.02492863,87654.0,87642.0,0.00017118]
[1766945936830,0.02492863,87653.0,87642.0,0.00017118]
[1766945937036,0.0114164,87655.0,87642.0,0.00017118]
[1766945937037,0.02492863,87652.0,87642.0,0.00017118]
[1766945937231,0.02492863,87651.0,87642.0,0.00017118]
[1766945937436,0.02492863,87650.0,87642.0,0.00017118]
[1766945937634,0.02492863,87649.0,87642.0,0.00017118]
[1766945937837,0.02492863,87648.0,87642.0,0.00017118]
[1766945938140,0.02492863,87647.0,87642.0,0.00017118]
[1766945938339,0.00017118,87659.0,87645.0,0.0114176]
[1766945938734,0.00017118,87659.0,87643.0,0.0114178]
[1766945941843,0.0114159,87658.0,87642.0,0.00017118]
[1766945942235,0.0114159,87658.0,87642.0,0.01158908]
[1766945944134,0.00017118,87659.0,87642.0,0.01158908]
[1766945944743,0.00017118,87659.0,87644.0,0.0114177]
[1766945946142,0.00017118,87659.0,87643.0,0.0114178]
[1766945950246,0.02484507,87658.0,87643.0,0.0114178]
[1766945950545,0.02484507,87657.0,87643.0,0.0114178]
[1766945950845,0.02484507,87656.0,87643.0,0.0114178]
[1766945951049,0.02484507,87655.0,87643.0,0.0114178]
[1766945951239,0.02484507,87654.0,87643.0,0.0114178]
[1766945951440,0.02484507,87653.0,87642.0,0.00017118]
[1766945951739,0.02484507,87652.0,87642.0,0.00017118]
[1766945951938,0.02484507,87651.0,87642.0,0.00017118]
[1766945952142,0.0114159,87658.0,87642.0,0.00017118]
[1766945952143,0.02484507,87650.0,87642.0,0.01158908]
[1766945952348,0.02484507,87649.0,87642.0,0.01158908]
[1766945952550,0.02484507,87648.0,87642.0,0.01158908]
[1766945952741,7e-08,87647.0,87642.0,0.01158908]
[1766945952940,0.00017118,87659.0,87642.0,0.01158908]
[1766945954748,0.00017118,87659.0,87643.0,0.0114178]
[1766945956351,0.00017118,87659.0,87645.0,0.0114175]
[1766945957448,0.00017118,87659.0,87642.0,0.00017118]
[1766945957449,0.00017118,87659.0,87642.0,0.01158908]
[1766945957847,0.00017118,87659.0,87643.0,0.11408752]
[1766945958245,0.01158698,87659.0,87643.0,0.11408752]
[1766945961954,0.00017118,87659.0,87644.0,0.0114177]
[1766945963454,0.00017118,87659.0,87642.0,0.00017118]
[1766945963658,0.00017118,87659.0,87645.0,0.11408817]
[1766945963956,0.00017118,87659.0,87642.0,0.00017118]
[1766945964351,0.00017118,87659.0,87643.0,0.11408817]
[1766945964557,0.00017118,87659.0,87647.0,0.0114172]
[1766945964756,0.02473756,87658.0,87647.0,0.0114172]
[1766945964959,0.02473756,87657.0,87647.0,0.0114172]
[1766945965163,6e-08,87656.0,87651.0,0.0114168]
[1766945965351,0.00017118,87659.0,87651.0,0.0114168]
[1766945967157,0.0557,87666.0,87651.0,0.0114168]
[1766945967355,0.06137608,87716.0,87693.0,0.0114112]
[1766945967652,0.011411,87696.0,87689.0,0.01708]
[1766945967857,0.0114108,87698.0,87685.0,0.05744]
[1766945968051,0.05744,87704.0,87685.0,0.05744]
[1766945968367,0.00017108,87703.0,87686.0,0.00017108]
[1766945968556,0.01158118,87703.0,87686.0,0.00017108]
[1766945971463,0.00017108,87703.0,87690.0,0.0019]
[1766945973364,0.0114105,87700.0,87690.0,0.0019]
[1766945974968,0.0114108,87698.0,87686.0,0.00017108]
[1766945978463,0.00017108,87703.0,87686.0,0.00017108]
[1766945978668,0.00017108,87703.0,87688.0,0.10027057]
[1766945978964,0.00017108,87703.0,87687.0,0.011412]
[1766945979670,0.00017108,87703.0,87686.0,0.00017108]
[1766945980368,0.0114103,87702.0,87686.0,0.00017108]
[1766945983163,0.00017108,87703.0,87686.0,0.00017108]
[1766945984172,0.0114104,87700.0,87686.0,0.00017108]
[1766945987472,0.00017108,87703.0,87686.0,0.00017108]
[1766945987673,0.01158128,87703.0,87686.0,0.00017108]
[1766945990369,0.0114104,87701.0,87686.0,0.00017108]
[1766945990877,0.10027057,87700.0,87686.0,0.067]
[1766945991175,0.10027057,87700.0,87670.0,0.10027057]
[1766945991176,0.10027057,87700.0,87682.0,0.05736]
[1766945991772,0.0114112,87695.0,87682.0,0.05736]
[1766945991975,0.0114112,87695.0,87683.0,0.11403678]
[1766945994971,0.0114112,87695.0,87678.0,0.0114132]
[1766945994972,0.10027057,87700.0,87668.0,0.04215248]
[1766945995275,0.0114123,87686.0,87670.0,0.22572415]
[1766945995471,0.0114123,87686.0,87670.0,0.13168477]
[1766945995673,0.0114123,87686.0,87670.0,0.12027057]
[1766945995881,0.0114123,87686.0,87671.0,0.11403938]
[1766945996074,0.0114119,87689.0,87671.0,0.11403938]
[1766945996578,0.0114119,87689.0,87671.0,0.12545348]
[1766945996779,0.0114119,87689.0,87671.0,0.15619146]
[1766945998583,0.10027057,87700.0,87671.0,0.14477736]
[1766945998776,0.10027057,87700.0,87671.0,0.15619156]
[1766946000277,0.0114118,87690.0,87671.0,0.15619156]
[1766946000784,0.0114121,87688.0,87671.0,0.15619156]
[1766946001183,0.0114106,87699.0,87672.0,0.03073798]
[1766946001483,0.0114123,87686.0,87672.0,0.03073798]
[1766946001872,0.10027057,87700.0,87659.0,0.05239967]
[1766946001873,0.0114131,87680.0,87659.0,0.05239967]
[1766946002078,0.11168357,87680.0,87660.0,0.10027057]
[1766946002277,0.0114139,87674.0,87661.0,0.17137239]
[1766946002474,0.0114139,87674.0,87662.0,0.097]
[1766946002681,0.0114139,87674.0,87662.0,0.22417973]
[1766946003276,0.00017108,87677.0,87662.0,0.22417973]
[1766946003593,0.00017108,87677.0,87662.0,0.21105239]
[1766946004290,0.0114136,87676.0,87662.0,0.21105239]
[1766946004483,0.00017108,87677.0,87662.0,0.21105239]
[1766946006189,0.00017108,87677.0,87667.0,0.10027057]
[1766946006792,0.00017108,87677.0,87663.0,0.01312734]
[1766946008791,0.00017108,87677.0,87662.0,0.1084154]
[1766946012696,0.00017108,87677.0,87662.0,0.097]
[1766946012998,1.08e-06,87677.0,87662.0,0.097]
[1766946013190,1.08e-06,87677.0,87665.0,0.0114149]
[1766946013392,1.08e-06,87677.0,87666.0,0.05736]
[1766946014792,1.08e-06,87677.0,87667.0,0.11168527]
[1766946015388,1.08e-06,87677.0,87666.0,0.05736]
[1766946016299,1.08e-06,87677.0,87666.0,0.0687747]
[1766946017399,1.08e-06,87677.0,87668.0,0.0114145]
[1766946020783,0.0114125,87685.0,87668.0,0.0114145]
[1766946021103,0.0114125,87685.0,87670.0,0.10027057]
[1766946026204,0.0114125,87685.0,87671.0,0.05736]
[1766946026798,0.0114128,87683.0,87671.0,0.05736]
[1766946028399,0.00017108,87686.0,87671.0,0.05736]
[1766946029306,0.0114127,87683.0,87671.0,0.05736]
[1766946030806,0.011413,87681.0,87671.0,0.05736]
[1766946031809,0.0114125,87684.0,87671.0,0.05736]
[1766946034605,0.0114125,87684.0,87672.0,0.0114]
[1766946051112,0.0114127,87683.0,87672.0,0.0114]
[1766946052809,0.0114111,87695.0,87674.0,0.0114137]
[1766946053313,0.0114115,87692.0,87674.0,0.0114137]
[1766946053810,0.01158258,87692.0,87674.0,0.01158478]
[1766946058217,0.00017108,87692.0,87674.0,0.01158478]
[1766946058818,0.00017108,87692.0,87674.0,0.00017108]
[1766946059014,0.0114082,87718.0,87689.0,0.0114119]
[1766946059215,0.0114082,87718.0,87689.0,0.0414119]
[1766946059418,0.00793767,87724.0,87690.0,0.15436]
[1766946059419,0.01368898,87713.0,87690.0,0.15436]
[1766946059710,0.01368898,87713.0,87691.0,0.05732]
[1766946059914,0.01368898,87713.0,87691.0,0.15436]
[1766946060119,0.0114093,87709.0,87692.0,0.01156108]
[1766946060306,0.0114093,87709.0,87692.0,0.12558551]
[1766946060507,0.00017108,87710.0,87692.0,0.12558551]
[1766946062620,1.08e-06,87710.0,87692.0,0.12558551]
[1766946063619,0.00228018,87713.0,87692.0,0.12558551]
[1766946064421,0.15436,87718.0,87692.0,0.12558551]
[1766946064618,0.00011286,87714.0,87692.0,0.12558551]
[1766946065213,0.1002967,87702.0,87675.0,0.03075228]
[1766946065411,0.15432,87701.0,87675.0,0.0114137]
[1766946065713,0.15432,87711.0,87675.0,0.14402118]
[1766946065913,0.05732,87713.0,87675.0,0.14402118]
[1766946066218,0.05732,87713.0,87685.0,0.00017108]
[1766946066522,0.05732,87713.0,87686.0,0.1657322]
[1766946066725,0.011409,87712.0,87686.0,0.1657322]
[1766946066913,0.011409,87712.0,87686.0,0.27977288]
[1766946068118,0.0114094,87708.0,87686.0,0.26836068]
[1766946069818,0.05732,87713.0,87689.0,0.0114118]
[1766946070430,0.05732,87713.0,87690.0,0.11402898]
[1766946070821,0.0114096,87707.0,87690.0,0.11402898]
[1766946071121,0.0114096,87707.0,87686.0,0.15432]
[1766946071520,0.0114096,87707.0,87687.0,0.11402313]
[1766946072827,0.0114091,87711.0,87687.0,0.12543523]
[1766946073129,0.0114095,87708.0,87687.0,0.11402313]
[1766946075028,0.05732,87713.0,87687.0,0.11402313]
[1766946076531,0.0114098,87705.0,87687.0,0.11402313]
[1766946076933,0.0114098,87705.0,87687.0,0.12543523]
[1766946080335,0.05732,87713.0,87687.0,0.11402313]
[1766946080927,0.05732,87713.0,87691.0,0.0114116]
[1766946081227,0.0114089,87712.0,87693.0,0.0114113]
[1766946081422,0.0114092,87710.0,87693.0,0.0114113]
[1766946082430,0.05732,87726.0,87700.0,0.1002967]
[1766946082625,0.0114079,87720.0,87701.0,0.15432]
[1766946083524,0.00017108,87719.0,87702.0,0.00017108]
[1766946083924,0.0114082,87718.0,87702.0,0.00017108]
[1766946086935,0.0114084,87716.0,87702.0,0.00017108]
[1766946088037,0.0114087,87714.0,87702.0,0.00017108]
[1766946088226,0.00017108,87719.0,87702.0,0.00017108]
[1766946088429,0.0114089,87713.0,87702.0,0.00017108]
[1766946090839,0.0114089,87713.0,87703.0,0.00019]
[1766946091440,0.0114087,87714.0,87702.0,0.00017108]
[1766946091633,0.00017108,87719.0,87702.0,0.00017108]
[1766946091941,0.011409,87712.0,87702.0,0.00017108]
[1766946092239,0.0114093,87709.0,87702.0,0.00017108]
[1766946092631,0.00017108,87719.0,87702.0,0.00017108]
[1766946092838,0.0114087,87714.0,87702.0,0.00017108]
[1766946093135,0.0114082,87718.0,87702.0,0.00017108]
[1766946096942,0.01157908,87719.0,87702.0,0.00017108]
[1766946099345,0.01157908,87719.0,87702.0,0.01158118]
[1766946100952,0.00017108,87719.0,87702.0,0.01158118]
[1766946103851,0.01157918,87719.0,87702.0,0.00017108]
[1766946104139,0.0114084,87716.0,87702.0,0.00017108]
[1766946105640,0.01157908,87719.0,87702.0,0.00017108]
[1766946106351,0.00017108,87719.0,87703.0,0.0114099]
[1766946107850,0.00017108,87719.0,87705.0,0.0114097]
[1766946108051,0.00017108,87719.0,87709.0,0.10021863]
[1766946108551,0.00017108,87719.0,87705.0,0.0114097]
[1766946109453,0.00017108,87719.0,87709.0,0.10021863]
[1766946110252,0.00017108,87719.0,87708.0,0.01121]
[1766946111954,0.0114081,87718.0,87708.0,0.01121]
[1766946113757,0.0114081,87718.0,87708.0,0.11142863]
[1766946114253,0.0114081,87718.0,87708.0,0.01121]
[1766946114457,0.0114081,87718.0,87708.0,0.11142863]
[1766946114658,0.0114081,87718.0,87708.0,0.01121]
[1766946117564,0.00017108,87719.0,87708.0,0.01121]
[1766946117765,0.00793767,87724.0,87709.0,0.17132818]
[1766946117960,0.0114063,87732.0,87714.0,0.10021863]
[1766946118264,0.0114063,87732.0,87718.0,0.10021863]
[1766946118764,0.0114068,87729.0,87718.0,0.10021863]
[1766946122064,0.1657261,87734.0,87716.0,0.0687283]
[1766946122265,0.06118276,87735.0,87720.0,0.10021863]
[1766946122573,0.06118276,87735.0,87716.0,0.05732]
[1766946123173,0.0114071,87726.0,87720.0,0.10021863]
[1766946123375,0.0114071,87726.0,87716.0,0.15753863]
[1766946125372,0.0114067,87729.0,87716.0,0.15753863]
[1766946125575,0.05732,87737.0,87720.0,0.10021863]
[1766946125969,0.05732,87737.0,87716.0,0.05732]
[1766946126168,0.05732,87737.0,87720.0,0.10021863]
[1766946127073,0.011407,87727.0,87720.0,0.10021863]
[1766946127268,0.05732,87737.0,87717.0,0.10021863]
[1766946127474,0.05732,87737.0,87720.0,0.10021863]
[1766946128167,0.011407,87727.0,87720.0,0.10021863]
[1766946128367,0.011407,87727.0,87717.0,0.10021863]
[1766946129680,0.05732,87737.0,87717.0,0.10021863]
[1766946129878,0.0114065,87731.0,87720.0,0.10021863]
[1766946130373,0.0114068,87729.0,87720.0,0.10021863]
[1766946130979,0.05732,87737.0,87720.0,0.10021863]
[1766946131380,0.011407,87727.0,87720.0,3e-08]
[1766946131580,0.011407,87727.0,87717.0,0.10021863]
[1766946132268,0.0114074,87724.0,87716.0,0.05732]
[1766946132874,0.0114074,87724.0,87717.0,0.01121]
[1766946139386,0.0570136,87760.0,87717.0,0.01121]
[1766946139387,0.0114059,87735.0,87718.0,0.11399843]
[1766946139580,0.0114062,87733.0,87720.0,0.10021863]
[1766946139883,0.0114062,87733.0,87721.0,0.05728]
[1766946140988,0.15428,87739.0,87717.0,0.01121]
[1766946141188,0.15428,87739.0,87720.0,0.10021863]
[1766946141392,0.011407,87727.0,87718.0,0.11398999]
[1766946141581,0.011407,87727.0,87717.0,0.11142863]
[1766946141888,0.011407,87727.0,87719.0,0.11398999]
[1766946142189,0.011407,87727.0,87717.0,0.11142863]
[1766946142488,0.011407,87727.0,87718.0,0.11399518]
[1766946143984,0.0114065,87731.0,87718.0,0.11399518]
[1766946144183,0.0114065,87731.0,87720.0,0.10021863]
[1766946144489,0.0114065,87731.0,87717.0,0.01121]
[1766946144684,0.0114065,87731.0,87720.0,0.10021863]
[1766946144885,0.0114065,87731.0,87719.0,0.11399583]
[1766946145190,0.0114065,87731.0,87720.0,0.10021863]
[1766946146283,0.06118276,87763.0,87727.0,0.0114069]
[1766946146488,0.10021863,87750.0,87732.0,0.00017098]
[1766946146683,0.15424,87754.0,87728.0,0.0114067]
[1766946146894,0.0114041,87749.0,87730.0,0.0114064]
[1766946147078,0.0114041,87749.0,87730.0,0.11162503]
[1766946147283,0.0114044,87747.0,87730.0,0.10021863]
[1766946147483,0.0114048,87744.0,87725.0,0.0686871]
[1766946147684,0.00017064,87743.0,87726.0,0.00017098]
[1766946147885,0.00017064,87743.0,87727.0,0.0114069]
[1766946148390,0.00017064,87743.0,87728.0,0.11397959]
[1766946148889,0.10021863,87740.0,87726.0,0.00017098]
[1766946149084,0.10021863,87740.0,87720.0,0.05728]
[1766946149285,0.10021863,87740.0,87716.0,0.0114083]
[1766946149592,0.0114058,87736.0,87718.0,0.0114081]
[1766946149792,0.0114058,87736.0,87715.0,0.05728]
[1766946149793,0.05728,87735.0,87715.0,0.05728]
[1766946149990,0.10021863,87730.0,87701.0,0.03075228]
[1766946150195,0.00017098,87724.0,87707.0,0.00017098]
[1766946150684,0.00017098,87724.0,87707.0,0.01158038]
[1766946150885,0.00017098,87724.0,87708.0,0.11399129]
[1766946152485,0.09713098,87724.0,87708.0,0.11399129]
[1766946153690,0.10021863,87720.0,87707.0,0.00017098]
[1766946154789,0.011408,87719.0,87707.0,0.00017098]
[1766946154995,0.05728,87718.0,87707.0,0.00017098]
[1766946156891,0.0114082,87717.0,87702.0,0.05728]
[1766946157391,0.0114086,87715.0,87695.0,0.011411]
[1766946157591,0.0114086,87715.0,87696.0,0.05728]
[1766946157787,0.0114086,87715.0,87697.0,0.01158178]
[1766946158503,0.0686881,87718.0,87700.0,0.0114104]
[1766946163110,0.05728,87718.0,87703.0,0.01141]
[1766946165000,0.05728,87718.0,87705.0,0.0114097]
[1766946165608,0.05728,87718.0,87697.0,0.00017098]
[1766946166110,0.05728,87718.0,87701.0,0.0114102]
[1766946169211,0.05728,87718.0,87703.0,0.01141]
[1766946169517,0.05728,87718.0,87697.0,0.00017098]
[1766946171213,0.05728,87718.0,87706.0,0.0114096]
[1766946174016,0.05728,87718.0,87703.0,0.01141]
[1766946176906,0.097,87717.0,87703.0,0.01141]
[1766946180408,0.1084083,87717.0,87703.0,0.01141]
[1766946181606,0.1084083,87717.0,87700.0,0.0114103]
[1766946181807,0.097,87717.0,87697.0,0.03092326]
[1766946182517,0.0114085,87715.0,87698.0,0.0114106]
[1766946182815,0.097,87717.0,87700.0,0.0114104]
[1766946183514,0.0114089,87713.0,87699.0,0.0114106]
[1766946183713,0.05728,87712.0,87699.0,0.0114106]
[1766946187511,0.05728,87712.0,87700.0,0.0114]
[1766946188619,0.0795,87723.0,87708.0,0.0114093]
[1766946188924,0.15428,87722.0,87712.0,0.0114088]
[1766946189318,0.15428,87722.0,87707.0,0.0114094]
[1766946189623,0.0114081,87719.0,87702.0,0.0114101]
[1766946190019,0.0686881,87719.0,87702.0,0.0114101]
[1766946190524,0.0686881,87719.0,87703.0,0.11401143]
[1766946191128,0.0114083,87717.0,87703.0,0.11401143]
[1766946192022,0.05728,87719.0,87703.0,0.11401143]
[1766946193022,0.05728,87719.0,87703.0,0.12542143]
[1766946194746,0.0114081,87718.0,87703.0,0.11401143]
[1766946195149,0.05728,87719.0,87703.0,0.11401143]
[1766946196145,0.05728,87719.0,87704.0,0.0114099]
[1766946197350,0.05728,87719.0,87702.0,0.0114101]
[1766946198247,0.05728,87719.0,87704.0,0.0114099]
[1766946201251,0.05728,87719.0,87706.0,0.0114096]
[1766946203748,0.05728,87719.0,87707.0,0.0114]
[1766946204050,0.00017098,87724.0,87714.0,0.0114085]
[1766946204448,0.00017098,87724.0,87716.0,0.0114082]
[1766946204844,0.00017098,87724.0,87713.0,0.0114087]
[1766946205051,0.00017098,87724.0,87711.0,0.011409]
[1766946205553,0.00017098,87724.0,87713.0,0.0114086]
[1766946206648,0.00017098,87724.0,87710.0,0.0114091]
[1766946209749,0.05728,87730.0,87710.0,0.0114091]
[1766946210744,0.00017098,87729.0,87710.0,0.0114091]
[1766946210947,0.00017098,87729.0,87708.0,0.1215]
[1766946211650,0.01157768,87729.0,87712.0,0.0114088]
[1766946213655,0.01157768,87729.0,87714.0,0.0114085]
[1766946213656,0.00017098,87729.0,87714.0,0.0114085]
[1766946214446,0.05728,87743.0,87718.0,0.011408]
[1766946214649,0.05728,87743.0,87719.0,0.15428]
[1766946215347,0.0114058,87736.0,87722.0,0.00017098]
[1766946218063,0.0114061,87734.0,87722.0,0.00017098]
[1766946218762,0.0114057,87737.0,87722.0,0.00017098]
[1766946220469,0.0114057,87737.0,87723.0,0.01139]
[1766946220856,0.00017064,87740.0,87723.0,0.01139]
[1766946222062,0.0114058,87736.0,87723.0,0.01139]
[1766946226556,0.0114054,87739.0,87723.0,0.01139]
[1766946226951,0.0114057,87737.0,87723.0,0.01139]
[1766946227457,0.0114057,87737.0,87727.0,0.10016803]
[1766946228058,0.01157594,87740.0,87727.0,0.10016803]
[1766946228266,0.01157594,87740.0,87730.0,0.10016803]
[1766946228761,0.0114056,87738.0,87730.0,0.10016803]
[1766946232271,0.00017064,87740.0,87730.0,0.10016803]
[1766946232472,0.00017064,87740.0,87727.0,0.05728]
[1766946232772,0.0114057,87737.0,87730.0,0.10016803]
[1766946232971,0.0114057,87737.0,87727.0,0.15744803]
[1766946238172,0.00017064,87740.0,87728.0,0.05728]
[1766946238371,0.0114054,87739.0,87726.0,0.05728]
[1766946238575,0.0114054,87739.0,87722.0,0.00017098]
[1766946238877,0.0114054,87739.0,87723.0,0.01334]
[1766946239177,0.0114054,87739.0,87722.0,0.05728]
[1766946239876,0.0114054,87739.0,87722.0,0.05745098]
[1766946240173,0.0114066,87730.0,87722.0,0.05745098]
[1766946241072,0.0114066,87730.0,87722.0,0.00017098]
[1766946241278,0.0114066,87730.0,87723.0,0.05728]
[1766946241880,0.00017064,87740.0,87723.0,0.05728]
[1766946242179,0.0114065,87731.0,87723.0,0.05728]
[1766946243174,0.0114069,87728.0,87721.0,6e-08]
[1766946251482,0.0114064,87731.0,87721.0,6e-08]
[1766946254091,0.15424,87737.0,87721.0,6e-08]
[1766946254289,0.0114068,87728.0,87721.0,6e-08]